bitfinex-derivatives/quotes_SOLF0:USTF0_20241101
["timestamp","ask_amount","ask_price","bid_price","bid_amount"]
[1730481251923,2.9994,166.74,166.7,3.0]
[1730481255419,1.3525,166.8,166.7,3.0]
[1730481255620,2.9996,166.73,166.7,3.0]
[1730481255823,5.0,166.83,166.69,25.7262862]
[1730481256017,2.9988,166.78,166.72,23.0353862]
[1730481256211,7.3336,166.85,166.73,5.0]
[1730481256913,1.3387,166.85,166.73,5.0]
[1730481257114,23.0353862,166.81,166.73,5.0]
[1730481257414,2.9994,166.74,166.73,5.0]
[1730481259321,3.0001,166.7,166.69,1.3288]
[1730481259522,23.0353862,166.78,166.69,1.3288]
[1730481260719,5.997,166.8,166.69,1.3288]
[1730481260923,24.2958862,166.81,166.69,1.3288]
[1730481260924,1.2605,166.81,166.7,23.0353862]
[1730481261119,1.2605,166.81,166.7,24.3258862]
[1730481261318,5.0,166.82,166.72,23.0353862]
[1730481261519,7.3339,166.85,166.72,23.0353862]
[1730481261722,1.3387,166.85,166.73,5.0]
[1730481262220,2.9985,166.79,166.75,2.9991]
[1730481263721,1.3387,166.85,166.74,1.3271]
[1730481263928,2.9989,166.77,166.74,1.3271]
[1730481264320,1.3387,166.85,166.74,1.3271]
[1730481264525,2.9991,166.76,166.74,1.3271]
[1730481267419,23.0353862,166.9,166.75,23.0353862]
[1730481267928,2.9981,166.82,166.78,23.0353862]
[1730481268227,5.993,166.91,166.79,5.9953]
[1730481268538,2.9975,166.85,166.82,2.9978]
[1730481269327,26.9558862,166.93,166.79,7.2851]
[1730481269328,2.9973,166.86,166.79,7.2851]
[1730481269734,26.9558862,166.93,166.79,7.2851]
[1730481269930,26.9558862,166.93,166.81,2.9981]
[1730481271424,2.9973,166.86,166.81,2.9981]
[1730481272639,2.997,166.88,166.79,7.2851]
[1730481272823,26.9558862,166.93,166.79,7.2851]
[1730481273022,2.9977,166.84,166.8,2.9983]
[1730481273423,23.0353862,166.9,166.79,5.9953]
[1730481273841,2.9975,166.85,166.79,5.9953]
[1730481274028,5.9924,166.92,166.79,5.9953]
[1730481274029,3.9205,166.93,166.84,2.9975]
[1730481274233,3.9205,166.93,166.81,23.0353862]
[1730481274234,2.997,166.88,166.81,23.0353862]
[1730481274832,3.9205,166.93,166.81,23.0353862]
[1730481275029,2.9968,166.89,166.81,23.0353862]
[1730481275333,1.3843,166.93,166.81,23.0353862]
[1730481275639,2.997,166.88,166.84,2.9975]
[1730481277134,2.9971,166.87,166.84,2.9975]
[1730481279530,2.9967,166.9,166.85,4.72]
[1730481279736,2.9967,166.9,166.86,1.3041]
[1730481280141,2.9967,166.9,166.87,1.3064]
[1730481280539,2.9967,166.9,166.87,4.3033]
[1730481281136,2.6689,166.99,166.87,4.3033]
[1730481281137,2.6689,166.99,166.87,24.3417862]
[1730481281337,1.3453,166.99,166.9,2.9965]
[1730481281537,29.0241862,167.02,166.9,2.9965]
[1730481281744,2.9962,166.92,166.89,2.9966]
[1730481281950,23.0353862,167.0,166.87,24.3417862]
[1730481282235,2.9962,166.92,166.88,2.9967]
[1730481282443,23.0353862,167.0,166.87,24.3417862]
[1730481283042,2.9961,166.93,166.89,2.9966]
[1730481283239,23.0353862,167.0,166.87,24.3417862]
[1730481283637,2.9964,166.91,166.87,27.3387862]
[1730481283945,23.0353862,167.0,166.87,29.0617862]
[1730481284239,2.9963,166.92,166.88,2.9968]
[1730481284753,2.6081,167.03,166.9,23.0353862]
[1730481285044,2.6081,167.03,166.92,23.0353862]
[1730481285045,1.3453,167.03,166.92,23.0353862]
[1730481285235,2.995,166.99,166.95,2.9956]
[1730481285435,1.3198,167.04,166.93,6.0867]
[1730481285636,24.3018862,167.08,166.93,6.0867]
[1730481285844,2.9945,167.02,166.95,23.0353862]
[1730481286046,1.3182,167.1,166.93,6.0867]
[1730481286047,23.0353862,167.14,166.97,23.0353862]
[1730481286243,23.0353862,167.14,167.0,23.0353862]
[1730481286244,0.97265727,167.12,167.0,23.0353862]
[1730481286438,0.97265727,167.12,167.01,22.08653206]
[1730481286439,2.9932,167.09,167.01,22.08653206]
[1730481286637,14.37203206,167.11,167.01,22.08653206]
[1730481287038,0.97256529,167.1,167.01,22.08653206]
[1730481287345,0.97256529,167.1,166.98,15.76243206]
[1730481287346,14.37203206,167.09,166.98,15.76243206]
[1730481287541,14.37203206,167.07,166.99,4.72]
[1730481288444,23.00537773,167.09,166.99,4.72]
[1730481289150,2.9944,167.02,166.99,4.72]
[1730481290846,2.9941,167.04,167.0,2.9947]
[1730481291038,23.00537773,167.12,166.99,4.72]
[1730481291440,23.00537773,167.12,167.01,2.9944]
[1730481292837,23.00537773,167.12,166.99,4.72]
[1730481293044,2.9941,167.04,166.99,4.72]
[1730481293244,23.00537773,167.12,166.99,4.72]
[1730481293844,23.00537773,167.09,166.99,4.72]
[1730481294041,1.3219,167.08,166.99,4.72]
[1730481295353,2.9946,167.01,166.99,4.72]
[1730481296345,2.9943,167.03,166.99,4.72]
[1730481296546,28.99087773,167.12,167.01,2.9945]
[1730481296849,28.99087773,167.12,166.99,4.72]
[1730481297450,2.9942,167.03,166.99,7.7148]
[1730481297953,2.9945,167.02,166.99,4.72]
[1730481298756,2.9938,167.06,166.97,2.9952]
[1730481298943,23.00537773,167.09,166.99,4.52]
[1730481299444,2.9945,167.02,166.99,4.52]
[1730481300048,2.9947,167.01,166.99,4.52]
[1730481300953,23.00537773,167.07,166.93,1.3667]
[1730481301153,4.52,167.09,166.94,4.52]
[1730481301154,23.00537773,167.04,166.94,4.52]
[1730481301338,5.9878,167.05,166.94,4.52]
[1730481302051,2.9953,166.97,166.94,4.52]
[1730481302255,23.00537773,167.03,166.94,4.52]
[1730481302639,2.9953,166.97,166.94,4.52]
[1730481304146,23.00537773,167.03,166.9,1.3699]
[1730481304345,23.00537773,167.03,166.91,4.52]
[1730481304845,2.9959,166.94,166.91,4.52]
[1730481305054,23.00537773,167.03,166.91,4.52]
[1730481305945,2.9954,166.97,166.93,2.9959]
[1730481306652,23.00537773,167.0,166.9,4.52]
[1730481306956,23.00537773,166.98,166.86,4.52]
[1730481307151,4.0161,166.97,166.86,7.5171]
[1730481307351,4.0161,166.97,166.86,27.52537773]
[1730481307540,23.00537773,167.03,166.89,23.00537773]
[1730481307745,1.3694,167.02,166.9,2.9964]
[1730481308245,1.3694,167.02,166.93,2.9958]
[1730481308442,1.3694,167.02,166.92,4.52]
[1730481308944,2.9956,166.96,166.92,4.52]
[1730481309146,1.3694,167.02,166.92,4.52]
[1730481309455,2.9955,166.96,166.92,7.5161]
[1730481309651,23.00537773,167.0,166.89,4.52]
[1730481309857,2.6501,166.99,166.89,4.52]
[1730481310446,2.9954,166.96,166.89,4.52]
[1730481310646,2.6501,166.99,166.89,4.52]
[1730481311156,1.3694,167.02,166.94,23.00537773]
[1730481311446,3.9149,167.08,166.95,4.52]
[1730481311651,2.9946,167.01,166.96,2.9953]
[1730481311849,3.9149,167.08,166.96,23.00537773]
[1730481312244,1.2648,167.08,166.99,23.00537773]
[1730481312546,33.50987773,167.14,167.0,4.52]
[1730481312747,1.2853,167.13,167.0,4.52]
[1730481312947,1.2853,167.13,167.0,5.7875]
[1730481313453,2.9937,167.06,167.0,5.7875]
[1730481313952,2.9933,167.08,167.04,2.994]
[1730481314158,1.2853,167.13,167.02,23.00537773]
[1730481314347,1.2853,167.13,167.03,2.7042]
[1730481314651,2.6501,167.16,167.04,23.00537773]
[1730481315355,2.9925,167.13,167.05,2.9938]
[1730481315550,2.6501,167.16,167.06,4.52]
[1730481316154,24.29067773,167.2,167.06,4.52]
[1730481316546,2.9919,167.16,167.06,7.5135]
[1730481316745,24.29067773,167.2,167.06,7.5135]
[1730481317143,2.9926,167.12,167.06,7.5135]
[1730481317347,1.2853,167.2,167.1,23.00537773]
[1730481317550,1.2853,167.2,167.11,2.6388]
[1730481317749,23.00537773,167.22,167.12,7.4924]
[1730481317953,2.5867,167.23,167.12,7.4924]
[1730481318151,1.3233,167.23,167.12,4.5]
[1730481318357,1.3233,167.23,167.13,23.00537773]
[1730481318562,1.3233,167.23,167.14,2.9922]
[1730481318951,2.9913,167.2,167.14,2.9922]
[1730481319150,1.3936,167.25,167.14,2.9922]
[1730481319655,2.9913,167.2,167.14,2.9922]
[1730481320167,1.3936,167.25,167.14,2.9922]
[1730481321648,23.00537773,167.28,167.16,23.00537773]
[1730481322152,2.9915,167.19,167.13,23.00537773]
[1730481323150,2.9915,167.19,167.14,2.9922]
[1730481323756,23.00537773,167.28,167.13,23.00537773]
[1730481323958,23.00537773,167.28,167.15,2.9919]
[1730481324559,2.9904,167.25,167.15,2.9919]
[1730481324758,23.00537773,167.28,167.15,2.9919]
[1730481325360,23.00537773,167.28,167.13,23.00537773]
[1730481325557,1.2941,167.29,167.16,23.00537773]
[1730481325952,2.9902,167.26,167.17,2.9915]
[1730481326158,1.2941,167.29,167.18,4.5]
[1730481326659,2.9908,167.22,167.18,4.5]
[1730481328559,2.991,167.21,167.18,7.4915]
[1730481329660,2.9913,167.19,167.18,4.5]
[1730481329966,2.9913,167.19,167.13,23.00537773]
[1730481329967,23.00537773,167.28,167.16,4.5]
[1730481330353,23.00537773,167.28,167.13,25.99767773]
[1730481330556,23.00537773,167.25,167.14,4.5]
[1730481330965,2.9917,167.17,167.14,7.4921]
[1730481331168,2.9917,167.17,167.14,4.5]
[1730481331377,23.00537773,167.25,167.14,4.5]
[1730481331559,23.00537773,167.25,167.13,23.00537773]
[1730481331560,2.9919,167.16,167.15,4.5]
[1730481332263,23.00537773,167.25,167.11,26.94597773]
[1730481332471,23.00537773,167.25,167.12,4.5]
[1730481332472,23.00537773,167.22,167.12,4.5]
[1730481332670,23.00537773,167.2,167.12,4.5]
[1730481332868,2.9924,167.13,167.12,4.5]
[1730481333074,3.936,167.21,167.12,4.5]
[1730481333871,2.9924,167.14,167.12,4.5]
[1730481334065,3.936,167.21,167.12,4.5]
[1730481334670,2.9924,167.13,167.12,4.5]
[1730481334869,2.9924,167.13,167.1,4.5]
[1730481335876,23.00537773,167.2,167.1,4.5]
[1730481336770,2.9925,167.13,167.1,4.5]
[1730481337473,2.9927,167.11,167.1,4.5]
[1730481337676,23.00537773,167.2,167.08,4.5]
[1730481337867,23.00537773,167.14,167.03,23.00537773]
[1730481338179,23.00537773,167.14,167.01,3.9619]
[1730481338180,23.00537773,167.14,167.02,4.5]
[1730481338477,23.00537773,167.17,167.02,4.5]
[1730481338774,1.3235,167.13,167.03,23.00537773]
[1730481339168,1.3235,167.13,167.02,4.5]
[1730481339366,25.72467773,167.12,167.01,5.845]
[1730481339669,24.38517773,167.12,167.01,5.845]
[1730481339868,1.3798,167.12,167.01,5.845]
[1730481340067,1.3798,167.12,167.01,8.4504]
[1730481340270,2.9935,167.07,167.03,25.99947773]
[1730481340474,1.3235,167.13,167.03,23.00537773]
[1730481340774,2.993,167.1,167.06,2.9935]
[1730481340969,5.9821,167.21,167.01,8.4504]
[1730481340970,23.00537773,167.24,167.09,23.00537773]
[1730481341175,1.3274,167.23,167.09,23.00537773]
[1730481341575,23.00537773,167.21,167.09,23.00537773]
[1730481341973,2.9923,167.14,167.09,25.99837773]
[1730481342681,2.9919,167.16,167.11,2.9927]
[1730481342878,5.8274,167.23,167.09,27.50537773]
[1730481342879,1.3274,167.23,167.09,27.50537773]
[1730481343069,1.3274,167.23,167.1,3.9887]
[1730481343271,2.9918,167.17,167.12,2.9925]
[1730481343569,24.33277773,167.23,167.1,3.9887]
[1730481344084,23.00537773,167.29,167.15,23.00537773]
[1730481344280,23.00537773,167.29,167.17,23.00537773]
[1730481344281,2.7015,167.29,167.17,23.00537773]
[1730481344583,2.7015,167.29,167.18,2.6816]
[1730481344780,0.97154113,167.28,167.18,2.6816]
[1730481345374,25.70687773,167.29,167.16,4.5]
[1730481346477,2.7015,167.29,167.17,23.00537773]
[1730481346891,2.7015,167.29,167.18,2.9914]
[1730481347081,23.00537773,167.34,167.17,23.00537773]
[1730481347286,0.97120666,167.33,167.24,23.00537773]
[1730481347589,2.9893,167.31,167.26,2.99]
[1730481348300,0.97120666,167.33,167.27,23.00537773]
[1730481349292,0.97120666,167.33,167.28,2.9896]
[1730481349789,0.97120666,167.33,167.27,23.00537773]
[1730481350089,2.9894,167.3,167.27,4.5]
[1730481350791,0.97120666,167.33,167.25,1.3406]
[1730481350990,0.97120666,167.33,167.2,1.2703]
[1730481351197,0.97120666,167.33,167.21,4.5]
[1730481351895,23.00537773,167.32,167.21,4.5]
[1730481353194,23.00537773,167.32,167.19,5.8051]
[1730481353384,27.50537773,167.32,167.19,5.8051]
[1730481356891,252.09023441,167.44,167.19,5.8051]
[1730481356892,23.00537773,167.4,167.24,23.00537773]
[1730481357089,23.00537773,167.4,167.27,23.00537773]
[1730481357290,2.9885,167.35,167.3,2.9893]
[1730481357489,23.00537773,167.42,167.28,1.3585]
[1730481357884,2.9884,167.36,167.3,2.9892]
[1730481358090,2.9884,167.36,167.31,4.5]
[1730481358290,23.00537773,167.42,167.31,4.5]
[1730481358486,2.9878,167.39,167.31,7.489]
[1730481358689,23.00537773,167.42,167.31,7.489]
[1730481358885,23.00537773,167.4,167.3,4.5]
[1730481359387,2.6803,167.43,167.3,4.5]
[1730481359388,23.00537773,167.42,167.3,27.50537773]
[1730481359590,2.9885,167.35,167.3,30.49467773]
[1730481359792,24.33417773,167.42,167.3,27.50537773]
[1730481360095,24.33417773,167.42,167.31,4.5]
[1730481360497,23.00537773,167.4,167.28,4.0581]
[1730481360794,23.00537773,167.4,167.29,4.5]
[1730481361191,24.33417773,167.42,167.3,23.00537773]
[1730481361404,24.33417773,167.42,167.29,4.5]
[1730481361993,24.33417773,167.42,167.3,23.00537773]
[1730481361994,1.3288,167.42,167.3,23.00537773]
[1730481362601,2.9881,167.38,167.32,2.9889]
[1730481363302,1.3288,167.42,167.28,4.0581]
[1730481363303,24.33417773,167.42,167.31,4.5]
[1730481363999,2.9888,167.34,167.31,4.5]
[1730481364700,24.33417773,167.42,167.31,27.50537773]
[1730481364907,1.3288,167.42,167.31,27.50537773]
[1730481365705,2.9879,167.38,167.33,2.9888]
[1730481366401,1.3288,167.42,167.33,23.00537773]
[1730481366696,2.9879,167.38,167.33,23.00537773]
[1730481366898,1.3288,167.42,167.31,27.50537773]
[1730481367099,2.9885,167.35,167.31,27.50537773]
[1730481367795,1.3288,167.42,167.31,27.50537773]
[1730481368306,2.9884,167.36,167.31,30.49447773]
[1730481368504,1.3288,167.42,167.31,27.50537773]
[1730481368896,2.9884,167.36,167.32,4.5]
[1730481369201,1.3288,167.42,167.32,4.5]
[1730481370310,23.00537773,167.45,167.33,23.00537773]
[1730481370604,2.988,167.38,167.33,23.00537773]
[1730481370796,2.988,167.38,167.33,25.99407773]
[1730481371202,2.988,167.38,167.33,23.00537773]
[1730481371507,2.988,167.38,167.34,2.9886]
[1730481371901,8.954,167.57,167.32,4.5]
[1730481371902,23.00537773,167.5,167.36,23.00537773]
[1730481372099,23.00537773,167.5,167.37,4.0524]
[1730481372303,0.97029517,167.49,167.42,23.00537773]
[1730481372597,4.0786,167.55,167.42,23.00537773]
[1730481372802,2.6996,167.55,167.42,23.00537773]
[1730481372998,24.38437773,167.59,167.45,23.00537773]
[1730481373306,0.96991598,167.58,167.46,7.1462]
[1730481373507,2.9859,167.5,167.46,7.1462]
[1730481374795,2.9856,167.52,167.46,7.1462]
[1730481375005,24.38437773,167.59,167.46,8.4568]
[1730481375203,0.96953331,167.58,167.46,8.4568]
[1730481375408,2.9858,167.5,167.46,8.4568]
[1730481375803,24.38437773,167.59,167.46,8.4568]
[1730481376109,0.96955227,167.58,167.46,8.4568]
[1730481376504,0.96955227,167.58,167.45,4.48]
[1730481376505,23.00537773,167.56,167.45,4.48]
[1730481376707,2.9862,167.48,167.45,4.48]
[1730481376907,23.00537773,167.56,167.45,4.48]
[1730481377108,0.96955227,167.55,167.45,27.48537773]
[1730481377409,2.9857,167.51,167.45,27.48537773]
[1730481377812,24.38437773,167.59,167.45,27.48537773]
[1730481378012,0.96957247,167.58,167.45,27.48537773]
[1730481378207,0.96957247,167.58,167.48,25.99137773]
[1730481378410,2.9853,167.53,167.48,25.99137773]
[1730481378714,25.96882024,167.62,167.49,1.2953]
[1730481379101,0.96948102,167.61,167.49,3.9754]
[1730481379720,2.9854,167.53,167.49,3.9754]
[1730481380011,23.00537773,167.62,167.49,6.9612]
[1730481380213,2.985,167.55,167.49,3.9754]
[1730481380422,31.63447773,167.64,167.51,23.00537773]
[1730481380713,31.63447773,167.64,167.52,4.48]
[1730481380924,23.00537773,167.61,167.51,4.48]
[1730481381317,23.00537773,167.59,167.45,23.00537773]
[1730481381516,23.00537773,167.56,167.46,4.48]
[1730481381716,23.00537773,167.56,167.47,4.48]
[1730481381917,0.96947518,167.58,167.47,7.4663]
[1730481382114,23.00537773,167.59,167.47,4.48]
[1730481382612,0.96948183,167.58,167.47,4.48]
[1730481382817,24.34407773,167.61,167.48,23.00537773]
[1730481383018,0.96943113,167.6,167.48,23.00537773]
[1730481383222,1.93878637,167.6,167.48,23.00537773]
[1730481383418,28.97317773,167.61,167.48,23.00537773]
[1730481383611,0.96936078,167.6,167.5,2.9858]
[1730481383814,0.96936078,167.6,167.51,2.6553]
[1730481384018,2.985,167.55,167.51,2.6553]
[1730481384415,23.00537773,167.61,167.51,2.6553]
[1730481385408,2.985,167.55,167.51,2.6553]
[1730481386920,2.9854,167.52,167.51,2.6553]
[1730481387115,2.9854,167.52,167.51,7.1353]
[1730481388329,23.00537773,167.56,167.42,23.00537773]
[1730481388527,23.00537773,167.56,167.45,4.48]
[1730481388528,2.9863,167.47,167.45,4.48]
[1730481388845,2.9863,167.47,167.39,2.6886]
[1730481390340,2.9863,167.47,167.39,25.69397773]
[1730481391241,2.9863,167.47,167.4,2.9875]
[1730481391441,2.9863,167.47,167.39,25.69397773]
[1730481391939,2.9863,167.47,167.4,2.9875]
[1730481392245,2.9863,167.47,167.39,25.69397773]
[1730481392743,2.9863,167.47,167.39,2.6886]
[1730481393645,23.00537773,167.49,167.39,1.3821]
[1730481394040,2.9876,167.4,167.39,1.3821]
[1730481396247,6.97577184,167.55,167.39,24.38747773]
[1730481396248,2.9867,167.45,167.39,24.38747773]
[1730481396440,23.00537773,167.51,167.39,24.38747773]
[1730481396441,27.48537773,167.51,167.39,24.38747773]
[1730481397248,23.00537773,167.49,167.39,1.3821]
[1730481397941,2.9873,167.42,167.39,1.3821]
[1730481398451,2.9871,167.43,167.39,1.3821]
[1730481398639,5.9715,167.51,167.39,24.38747773]
[1730481398843,5.9715,167.51,167.4,2.9874]
[1730481399043,5.9715,167.51,167.39,24.38747773]
[1730481399044,23.00537773,167.52,167.39,23.00537773]
[1730481399248,23.00537773,167.49,167.36,23.00537773]
[1730481399454,2.9875,167.41,167.36,25.99367773]
[1730481400144,23.00537773,167.49,167.36,25.99367773]
[1730481400343,23.00537773,167.49,167.35,2.5156]
[1730481400344,28.97817773,167.47,167.35,5.504]
[1730481400546,27.48537773,167.47,167.35,2.5156]
[1730481400745,2.9883,167.36,167.35,2.5156]
[1730481401453,9.8239,167.46,167.34,1.3344]
[1730481401454,2.9884,167.35,167.34,1.3344]
[1730481401747,28.97917773,167.44,167.34,1.3344]
[1730481402051,2.9884,167.36,167.34,1.3344]
[1730481402246,28.97917773,167.44,167.34,1.3344]
[1730481402649,2.9883,167.36,167.34,1.3344]
[1730481402849,28.97917773,167.44,167.34,1.3344]
[1730481403053,2.9874,167.41,167.34,1.3344]
[1730481403243,28.97917773,167.44,167.34,1.3344]
[1730481403746,2.9884,167.35,167.34,1.3344]
[1730481404956,2.9889,167.33,167.29,2.9894]
[1730481405256,23.00537773,167.41,167.31,23.00537773]
[1730481405257,4.48,167.41,167.31,23.00537773]
[1730481405453,2.9884,167.36,167.32,2.9889]
[1730481405656,4.48,167.41,167.32,2.9889]
[1730481405856,4.48,167.41,167.31,23.00537773]
[1730481406056,2.9879,167.38,167.33,2.9888]
[1730481406354,23.00537773,167.44,167.33,2.9888]
[1730481406547,5.9741,167.43,167.31,23.00537773]
[1730481406754,2.9886,167.35,167.31,25.99447773]
[1730481406956,2.9886,167.35,167.31,23.00537773]
[1730481407256,3.8508,167.46,167.34,23.00537773]
[1730481407257,2.9876,167.4,167.34,23.00537773]
[1730481407567,3.8508,167.46,167.35,4.0407]
[1730481408257,3.8508,167.46,167.31,23.00537773]
[1730481408441,23.00537773,167.44,167.31,23.00537773]
[1730481408847,23.00537773,167.44,167.32,2.989]
[1730481409254,2.9884,167.36,167.32,2.989]
[1730481409648,23.00537773,167.44,167.31,23.00537773]
[1730481410157,23.00537773,167.44,167.33,2.9887]
[1730481410158,2.9882,167.37,167.33,2.9887]
[1730481410348,3.8508,167.46,167.33,23.00537773]
[1730481410749,2.9878,167.39,167.33,23.00537773]
[1730481410948,3.8508,167.46,167.33,23.00537773]
[1730481411154,3.8508,167.46,167.3,27.04607773]
[1730481411155,23.00537773,167.44,167.3,27.04607773]
[1730481411358,23.00537773,167.44,167.32,2.9888]
[1730481411652,23.00537773,167.44,167.3,27.04607773]
[1730481411851,23.00537773,167.41,167.3,4.0407]
[1730481412157,2.93579949,167.47,167.39,23.00537773]
[1730481412459,8.21838577,167.57,167.33,23.00537773]
[1730481412460,3.895,167.57,167.46,23.00537773]
[1730481412656,3.895,167.57,167.42,23.00537773]
[1730481412657,3.895,167.57,167.49,23.00537773]
[1730481413056,0.96992372,167.56,167.49,23.00537773]
[1730481413545,26.90037773,167.57,167.44,5.92]
[1730481413952,26.90037773,167.57,167.45,2.9866]
[1730481413953,2.9856,167.52,167.45,2.9866]
[1730481414152,26.90037773,167.57,167.44,5.92]
[1730481414348,3.895,167.57,167.48,23.00537773]
[1730481414547,28.92537773,167.63,167.49,2.9859]
[1730481414752,57.92552613,167.67,167.5,23.00537773]
[1730481414753,3.9531,167.62,167.5,23.00537773]
[1730481415144,2.9845,167.57,167.5,25.99097773]
[1730481416151,2.9845,167.57,167.51,2.9856]
[1730481416457,2.9845,167.57,167.5,23.00537773]
[1730481416458,3.9531,167.62,167.5,23.00537773]
[1730481416657,34.9201484,167.67,167.56,2.9845]
[1730481416853,23.00537773,167.68,167.53,23.00537773]
[1730481417246,23.00537773,167.68,167.56,2.9846]
[1730481417451,23.00537773,167.68,167.53,23.00537773]
[1730481417951,9.89,167.7,167.52,2.571]
[1730481417952,23.00537773,167.65,167.52,2.571]
[1730481418659,23.00537773,167.68,167.53,23.00537773]
[1730481418964,0.96900632,167.67,167.55,2.9849]
[1730481419157,0.96900632,167.67,167.53,23.00537773]
[1730481419358,2.9837,167.62,167.53,23.00537773]
[1730481419552,23.00537773,167.68,167.53,23.00537773]
[1730481419857,0.96893605,167.67,167.53,23.00537773]
[1730481420045,2.9845,167.58,167.52,5.5564]
[1730481420254,23.00537773,167.68,167.52,25.57637773]
[1730481420555,23.00537773,167.65,167.52,25.57637773]
[1730481420752,23.00537773,167.65,167.33,23.00537773]
[1730481420753,23.00537773,167.6,167.47,23.00537773]
[1730481420957,4.161,167.59,167.47,23.00537773]
[1730481421356,4.161,167.59,167.5,23.00537773]
[1730481421556,2.9848,167.56,167.5,25.99107773]
[1730481421757,1.3779,167.59,167.47,23.00537773]
[1730481422459,1.3779,167.59,167.44,5.92]
[1730481422460,1.3779,167.59,167.49,23.00537773]
[1730481422662,1.3779,167.59,167.46,23.00537773]
[1730481422958,1.3779,167.59,167.43,31.59737773]
[1730481422959,23.00537773,167.57,167.43,31.59737773]
[1730481423161,2.9862,167.48,167.43,2.672]
[1730481423353,1.3779,167.59,167.47,23.00537773]
[1730481423662,2.9844,167.58,167.52,2.9854]
[1730481423861,5.92,167.69,167.53,23.00537773]
[1730481424051,5.92,167.69,167.54,4.0781]
[1730481424052,2.6354,167.68,167.54,4.0781]
[1730481424258,2.9841,167.6,167.54,7.0631]
[1730481424558,2.9841,167.6,167.54,4.0781]
[1730481425159,2.6354,167.68,167.54,4.0781]
[1730481425358,2.6354,167.68,167.5,23.00537773]
[1730481425862,2.984,167.6,167.52,2.9854]
[1730481426162,25.64077773,167.68,167.53,23.00537773]
[1730481426352,2.9839,167.61,167.55,2.9848]
[1730481426558,0.9689382,167.67,167.55,2.9848]
[1730481426763,0.96895798,167.66,167.55,2.9848]
[1730481427063,2.984,167.61,167.55,2.9848]
[1730481427465,23.00537773,167.65,167.5,23.00537773]
[1730481428262,27.00077773,167.68,167.5,23.00537773]
[1730481428463,0.96893903,167.67,167.54,23.00537773]
[1730481429667,2.9839,167.61,167.56,2.9847]
[1730481429966,23.00537773,167.65,167.51,23.00537773]
[1730481430158,2.9843,167.59,167.53,2.9851]
[1730481430361,0.96898806,167.64,167.51,23.00537773]
[1730481430554,23.00537773,167.65,167.51,23.00537773]
[1730481430759,0.96895823,167.64,167.51,23.00537773]
[1730481431073,0.96895823,167.64,167.51,28.92537773]
[1730481431269,2.9844,167.58,167.53,2.9851]
[1730481431756,2.9852,167.54,167.51,5.92]
[1730481431961,23.00537773,167.62,167.51,5.92]
[1730481432570,0.96916515,167.61,167.51,5.92]
[1730481433780,23.00537773,167.6,167.48,3.9657]
[1730481434070,23.00537773,167.57,167.46,23.00537773]
[1730481434265,23.00537773,167.57,167.44,5.92]
[1730481434467,25.58867773,167.6,167.46,23.00537773]
[1730481434871,1.93850469,167.59,167.49,23.00537773]
[1730481435064,0.96921545,167.59,167.49,23.00537773]
[1730481435371,2.9845,167.58,167.53,2.9851]
[1730481435573,0.96921545,167.59,167.5,3.9728]
[1730481436175,0.96921545,167.59,167.51,2.9855]
[1730481436370,0.96921545,167.59,167.5,3.9728]
[1730481436564,2.985,167.55,167.5,6.9585]
[1730481436768,0.96921545,167.59,167.5,3.9728]
[1730481437164,23.00537773,167.58,167.46,28.92537773]
[1730481437373,23.00537773,167.58,167.46,5.92]
[1730481437873,2.9853,167.53,167.48,2.9861]
[1730481438366,2.9853,167.53,167.44,3.919]
[1730481438367,2.9862,167.48,167.44,6.9057]
[1730481439070,1.2949,167.57,167.44,3.919]
[1730481439366,23.97459318,167.59,167.44,3.919]
[1730481439573,23.00537773,167.59,167.44,3.919]
[1730481439775,2.9854,167.53,167.44,3.919]
[1730481439964,23.00537773,167.59,167.44,3.919]
[1730481440369,2.9854,167.52,167.48,2.986]
[1730481441072,23.00537773,167.59,167.46,2.9865]